[Event "Early-Titled-Tuesday-Blitz-July-09-2024"]
[Site "Chess.com"]
[Date "2024.07.09"]
[Round "10"]
[White "GHANDEEVAM2003"]
[Black "Kirill_Klukin"]
[Result "1-0"]
[WhiteElo "3173"]
[BlackElo "2929"]
[TimeControl "180+1"]
[EndTime "9:58:39 PDT"]
[Termination "GHANDEEVAM2003 won by resignation"]

1. c4 {[%clk 0:03:00.9]} 1... c5 {[%clk 0:02:58.3]} 2. g3 {[%clk 0:03:00.4]}
2... g6 {[%clk 0:02:58.4]} 3. Bg2 {[%clk 0:03:00.6]} 3... Bg7 {[%clk 0:02:59.1]}
4. Nc3 {[%clk 0:03:00.8]} 4... Nc6 {[%clk 0:02:59.7]} 5. d3 {[%clk 0:03:00.9]}
5... a6 {[%clk 0:03:00.1]} 6. Qd2 {[%clk 0:02:58.9]} 6... Rb8 {[%clk 0:02:58]}
7. b3 {[%clk 0:02:57.8]} 7... d6 {[%clk 0:02:51.5]} 8. Bb2 {[%clk 0:02:56.2]}
8... Nf6 {[%clk 0:02:51.6]} 9. h4 {[%clk 0:02:55.6]} 9... Bd7 {[%clk 0:02:46.6]}
10. Nh3 {[%clk 0:02:47.7]} 10... b5 {[%clk 0:02:39.8]} 11. Nd5 {[%clk
0:02:46.3]} 11... e6 {[%clk 0:02:35.9]} 12. Nxf6+ {[%clk 0:02:44.9]} 12... Bxf6
{[%clk 0:02:36.1]} 13. h5 {[%clk 0:02:45.1]} 13... Qe7 {[%clk 0:02:27.7]} 14. f4
{[%clk 0:02:30.7]} 14... Nd4 {[%clk 0:02:11]} 15. e3 {[%clk 0:02:13.1]} 15...
Nf5 {[%clk 0:02:10.6]} 16. g4 {[%clk 0:02:13.5]} 16... Nxe3 {[%clk 0:02:06.6]}
17. Bf3 {[%clk 0:01:38.6]} 17... bxc4 {[%clk 0:01:58.4]} 18. Bxf6 {[%clk
0:01:38]} 18... Qxf6 {[%clk 0:01:58.7]} 19. Rc1 {[%clk 0:01:38.6]} 19... cxb3
{[%clk 0:01:23.5]} 20. Qxe3 {[%clk 0:01:38]} 20... bxa2 {[%clk 0:01:02.8]} 21.
O-O {[%clk 0:01:37.7]} 21... O-O {[%clk 0:00:56.9]} 22. Nf2 {[%clk 0:01:34.1]}
22... Rb2 {[%clk 0:00:50.8]} 23. g5 {[%clk 0:01:25.6]} 23... Qd4 {[%clk
0:00:44]} 24. Qxd4 {[%clk 0:01:25.5]} 24... cxd4 {[%clk 0:00:44.9]} 25. Ne4
{[%clk 0:01:26.4]} 25... Bb5 {[%clk 0:00:38.6]} 26. Nf6+ {[%clk 0:01:18.1]}
26... Kh8 {[%clk 0:00:38.6]} 27. hxg6 {[%clk 0:01:10.9]} 27... hxg6 {[%clk
0:00:34.8]} 28. Rf2 {[%clk 0:01:06.6]} 28... Rxf2 {[%clk 0:00:25]} 29. Kxf2
{[%clk 0:01:07.5]} 29... Kg7 {[%clk 0:00:25.7]} 30. Ra1 {[%clk 0:01:07.2]} 30...
Bxd3 {[%clk 0:00:24.1]} 31. Rxa2 {[%clk 0:01:06.7]} 31... Rb8 {[%clk 0:00:24.8]}
32. Rd2 {[%clk 0:01:04.2]} 32... Bc4 {[%clk 0:00:22.1]} 33. Rxd4 {[%clk
0:01:02.6]} 33... d5 {[%clk 0:00:22.7]} 34. Rd2 {[%clk 0:01:00.9]} 34... a5
{[%clk 0:00:22.5]} 35. Be2 {[%clk 0:00:58.4]} 35... Bb3 {[%clk 0:00:21.3]} 36.
Bd1 {[%clk 0:00:49.9]} 36... a4 {[%clk 0:00:15.5]} 37. Rb2 {[%clk 0:00:42]}
37... Rb4 {[%clk 0:00:05.8]} 38. Ke3 {[%clk 0:00:41.2]} 38... d4+ {[%clk
0:00:06.1]} 39. Kd2 {[%clk 0:00:39.9]} 39... d3 {[%clk 0:00:04.1]} 40. Bxb3
{[%clk 0:00:32.5]} 40... axb3 {[%clk 0:00:03]} 41. Ke3 {[%clk 0:00:17.8]} 41...
d2 {[%clk 0:00:03.2]} 42. Kxd2 {[%clk 0:00:17.9]} 42... Rxf4 {[%clk 0:00:03.9]}
43. Rxb3 {[%clk 0:00:18.3]} 43... Rf2+ {[%clk 0:00:03.8]} 44. Ke3 {[%clk
0:00:14]} 44... Rf5 {[%clk 0:00:04.2]} 45. Ne4 {[%clk 0:00:13.8]} 45... Ra5
{[%clk 0:00:03.5]} 46. Rb7 {[%clk 0:00:12.6]} 46... Rf5 {[%clk 0:00:03.5]} 47.
Rd7 {[%clk 0:00:09.5]} 47... Rf1 {[%clk 0:00:03.4]} 48. Nd6 {[%clk 0:00:07.8]}
48... Kf8 {[%clk 0:00:03.6]} 49. Ke2 {[%clk 0:00:06.4]} 49... Rf4 {[%clk
0:00:03.4]} 50. Ke3 {[%clk 0:00:07.1]} 50... Rf1 {[%clk 0:00:03.9]} 51. Ke4
{[%clk 0:00:07.7]} 51... Kg7 {[%clk 0:00:02.3]} 52. Ke5 {[%clk 0:00:06.3]} 52...
Re1+ {[%clk 0:00:02.3]} 53. Kf4 {[%clk 0:00:06.2]} 53... Rf1+ {[%clk 0:00:02.7]}
54. Ke5 {[%clk 0:00:06.2]} 54... Re1+ {[%clk 0:00:03.3]} 55. Kd4 {[%clk
0:00:06.7]} 55... Rd1+ {[%clk 0:00:03.7]} 56. Kc4 {[%clk 0:00:07.2]} 56... Rc1+
{[%clk 0:00:04]} 57. Kb5 {[%clk 0:00:07.2]} 57... Rf1 {[%clk 0:00:04.8]} 58. Kc6
{[%clk 0:00:07.1]} 58... Rc1+ {[%clk 0:00:02.9]} 59. Kb7 {[%clk 0:00:06.3]}
59... Rf1 {[%clk 0:00:03.6]} 60. Kc7 {[%clk 0:00:06.2]} 60... e5 {[%clk
0:00:04.3]} 61. Kd8 {[%clk 0:00:05]} 61... Kf8 {[%clk 0:00:02.3]} 62. Re7 {[%clk
0:00:02.6]} 62... e4 {[%clk 0:00:02.2]} 63. Rxe4 {[%clk 0:00:01.9]} 63... Rd1
{[%clk 0:00:01.3]} 64. Kd7 {[%clk 0:00:02.5]} 64... Rd5 {[%clk 0:00:02]} 65.
Re8+ {[%clk 0:00:02.7]} 65... Kg7 {[%clk 0:00:02.6]} 66. Re7 {[%clk 0:00:03.5]}
66... Kg8 {[%clk 0:00:03]} 67. Re8+ {[%clk 0:00:02.7]} 67... Kg7 {[%clk
0:00:03]} 68. Re7 {[%clk 0:00:03.6]} 68... Kg8 {[%clk 0:00:03.6]} 69. Rxf7
{[%clk 0:00:04.2]} 69... Rxd6+ {[%clk 0:00:03.5]} 70. Kxd6 {[%clk 0:00:05.1]}
70... Kxf7 {[%clk 0:00:04.1]} 71. Kd7 {[%clk 0:00:05.8]} 71... Kf8 {[%clk
0:00:03.7]} 72. Ke6 {[%clk 0:00:06.4]} 72... Ke8 {[%clk 0:00:02.2]} 73. Kf6
{[%clk 0:00:06.8]} 73... Kf8 {[%clk 0:00:02.9]} 74. Kxg6 {[%clk 0:00:07.5]}
74... Kg8 {[%clk 0:00:03.6]} 75. Kf6 {[%clk 0:00:07.9]} 75... Kf8 {[%clk
0:00:01.5]} 76. g6 {[%clk 0:00:07.8]} 1-0

[Event "Early-Titled-Tuesday-Blitz-July-09-2024"]
[Site "Chess.com"]
[Date "2024.07.09"]
[Round "11"]
[White "Pachonpower"]
[Black "Bilan_Danila"]
[Result "1-0"]
[WhiteElo "2474"]
[BlackElo "2575"]
[TimeControl "180+1"]
[EndTime "10:01:42 PDT"]
[Termination "Pachonpower won by checkmate"]

1. d4 {[%clk 0:03:00.9]} 1... d5 {[%clk 0:03:00.2]} 2. Nf3 {[%clk 0:03:01.1]}
2... Nf6 {[%clk 0:03:00.4]} 3. e3 {[%clk 0:03:01.6]} 3... c5 {[%clk 0:02:59.8]}
4. Nbd2 {[%clk 0:03:02.2]} 4... Nc6 {[%clk 0:02:59.9]} 5. c3 {[%clk 0:03:02.7]}
5... cxd4 {[%clk 0:02:57.8]} 6. exd4 {[%clk 0:03:03.6]} 6... Bg4 {[%clk
0:02:57.8]} 7. Be2 {[%clk 0:03:03.9]} 7... e6 {[%clk 0:02:57.9]} 8. O-O {[%clk
0:03:04.1]} 8... Bd6 {[%clk 0:02:58]} 9. Re1 {[%clk 0:03:04.7]} 9... O-O {[%clk
0:02:58.2]} 10. Ne5 {[%clk 0:03:04.9]} 10... Bxe2 {[%clk 0:02:57.1]} 11. Qxe2
{[%clk 0:03:05.8]} 11... Qc7 {[%clk 0:02:56.7]} 12. f4 {[%clk 0:03:06.1]} 12...
Rac8 {[%clk 0:02:55.9]} 13. Rf1 {[%clk 0:03:06.1]} 13... a6 {[%clk 0:02:54.3]}
14. g4 {[%clk 0:03:06.3]} 14... Nd7 {[%clk 0:02:53.7]} 15. Ndf3 {[%clk
0:03:05.7]} 15... f5 {[%clk 0:02:53]} 16. Ng5 {[%clk 0:03:04]} 16... Rce8 {[%clk
0:02:48.1]} 17. gxf5 {[%clk 0:03:03.6]} 17... exf5 {[%clk 0:02:47.6]} 18. Qh5
{[%clk 0:03:03.4]} 18... Nf6 {[%clk 0:02:45.8]} 19. Qh4 {[%clk 0:02:57.7]} 19...
g6 {[%clk 0:02:39.5]} 20. Be3 {[%clk 0:02:51.5]} 20... Ne4 {[%clk 0:02:38.4]}
21. Rf3 {[%clk 0:02:45.4]} 21... Be7 {[%clk 0:02:26.7]} 22. Qxh7# {[%clk
0:02:39.9]} 1-0

[Event "Early-Titled-Tuesday-Blitz-July-09-2024"]
[Site "Chess.com"]
[Date "2024.07.09"]
[Round "11"]
[White "Barmen_EV"]
[Black "madmax011"]
[Result "1-0"]
[WhiteElo "2510"]
[BlackElo "2354"]
[TimeControl "180+1"]
[EndTime "10:02:29 PDT"]
[Termination "Barmen_EV won by checkmate"]

1. e4 {[%clk 0:03:00.9]} 1... c5 {[%clk 0:02:59.7]} 2. c3 {[%clk 0:03:00.9]}
2... Nf6 {[%clk 0:02:58.2]} 3. e5 {[%clk 0:03:01.1]} 3... Nd5 {[%clk 0:02:58.4]}
4. d4 {[%clk 0:03:01.8]} 4... cxd4 {[%clk 0:02:57.6]} 5. Nf3 {[%clk 0:03:02.2]}
5... Nc6 {[%clk 0:02:56.6]} 6. cxd4 {[%clk 0:03:02.5]} 6... d6 {[%clk
0:02:56.1]} 7. Bc4 {[%clk 0:03:02.5]} 7... dxe5 {[%clk 0:02:55.2]} 8. dxe5
{[%clk 0:03:02.2]} 8... Ndb4 {[%clk 0:02:50.5]} 9. O-O {[%clk 0:03:01.1]} 9...
Qxd1 {[%clk 0:02:48.7]} 10. Rxd1 {[%clk 0:03:01.4]} 10... Nc2 {[%clk 0:02:48.5]}
11. Na3 {[%clk 0:03:01.1]} 11... Nxa3 {[%clk 0:02:43.8]} 12. bxa3 {[%clk
0:03:02]} 12... Bg4 {[%clk 0:02:43.4]} 13. e6 {[%clk 0:02:58.5]} 13... fxe6
{[%clk 0:02:40.6]} 14. Bf4 {[%clk 0:02:57.9]} 14... e5 {[%clk 0:02:36.7]} 15.
Bg3 {[%clk 0:02:27.5]} 15... e4 {[%clk 0:02:20.3]} 16. Ng5 {[%clk 0:02:27.4]}
16... Bxd1 {[%clk 0:02:17.8]} 17. Bf7+ {[%clk 0:02:24.8]} 17... Kd8 {[%clk
0:02:17.7]} 18. Rxd1+ {[%clk 0:02:25.5]} 18... Kc8 {[%clk 0:01:54]} 19. Be6#
{[%clk 0:02:23.9]} 1-0

[Event "Early-Titled-Tuesday-Blitz-July-09-2024"]
[Site "Chess.com"]
[Date "2024.07.09"]
[Round "11"]
[White "chessdjw"]
[Black "yaguigor"]
[Result "1-0"]
[WhiteElo "2755"]
[BlackElo "2618"]
[TimeControl "180+1"]
[EndTime "10:02:33 PDT"]
[Termination "chessdjw won by resignation"]

1. e4 {[%clk 0:02:58.9]} 1... c5 {[%clk 0:02:59.4]} 2. Nf3 {[%clk 0:02:58.9]}
2... Nc6 {[%clk 0:03:00]} 3. Bb5 {[%clk 0:02:58.7]} 3... g6 {[%clk 0:02:59.5]}
4. Bxc6 {[%clk 0:02:56.9]} 4... bxc6 {[%clk 0:02:58.6]} 5. O-O {[%clk
0:02:56.1]} 5... Bg7 {[%clk 0:02:59.1]} 6. Re1 {[%clk 0:02:53.3]} 6... Nh6
{[%clk 0:02:58.4]} 7. h3 {[%clk 0:02:52.9]} 7... O-O {[%clk 0:02:58.5]} 8. c3
{[%clk 0:02:52.8]} 8... f5 {[%clk 0:02:56.3]} 9. e5 {[%clk 0:02:50.2]} 9... Nf7
{[%clk 0:02:55.5]} 10. d4 {[%clk 0:02:49.7]} 10... cxd4 {[%clk 0:02:54.6]} 11.
cxd4 {[%clk 0:02:50.6]} 11... Bb7 {[%clk 0:02:50.4]} 12. Nc3 {[%clk 0:02:46.1]}
12... c5 {[%clk 0:02:47.7]} 13. dxc5 {[%clk 0:02:45.9]} 13... Qc7 {[%clk
0:02:47.3]} 14. Bf4 {[%clk 0:02:04.9]} 14... Qxc5 {[%clk 0:02:40.2]} 15. Qxd7
{[%clk 0:01:55.1]} 15... Bxf3 {[%clk 0:02:38.6]} 16. gxf3 {[%clk 0:01:56]} 16...
Nxe5 {[%clk 0:02:29.4]} 17. Bxe5 {[%clk 0:01:49.1]} 17... Bxe5 {[%clk
0:02:30.3]} 18. Qe6+ {[%clk 0:01:49.3]} 1-0

[Event "Early-Titled-Tuesday-Blitz-July-09-2024"]
[Site "Chess.com"]
[Date "2024.07.09"]
[Round "11"]
[White "MrEscacs"]
[Black "maroro07"]
[Result "0-1"]
[WhiteElo "2193"]
[BlackElo "2356"]
[TimeControl "180+1"]
[EndTime "10:02:43 PDT"]
[Termination "maroro07 won by resignation"]

1. e4 {[%clk 0:03:00.9]} 1... c5 {[%clk 0:02:51.7]} 2. c3 {[%clk 0:03:00.6]}
2... Nf6 {[%clk 0:02:49.4]} 3. e5 {[%clk 0:03:00.6]} 3... Nd5 {[%clk 0:02:49.6]}
4. Bc4 {[%clk 0:03:00.4]} 4... Nb6 {[%clk 0:02:49]} 5. Bb3 {[%clk 0:03:00.4]}
5... c4 {[%clk 0:02:48.7]} 6. Bc2 {[%clk 0:03:00.7]} 6... d5 {[%clk 0:02:48.9]}
7. d4 {[%clk 0:02:58.1]} 7... cxd3 {[%clk 0:02:45.8]} 8. Qxd3 {[%clk 0:02:57.8]}
8... Nc6 {[%clk 0:02:44]} 9. f4 {[%clk 0:02:56.3]} 9... g6 {[%clk 0:02:40.9]}
10. Nf3 {[%clk 0:02:55.4]} 10... Bf5 {[%clk 0:02:40.5]} 11. Qe2 {[%clk
0:02:55.7]} 11... Bxc2 {[%clk 0:02:39.2]} 12. Qxc2 {[%clk 0:02:56.3]} 12... Bg7
{[%clk 0:02:39]} 13. O-O {[%clk 0:02:55.4]} 13... O-O {[%clk 0:02:29.8]} 14.
Nbd2 {[%clk 0:02:55]} 14... Rc8 {[%clk 0:02:28.2]} 15. Nb3 {[%clk 0:02:55.1]}
15... Nc4 {[%clk 0:02:26.2]} 16. e6 {[%clk 0:02:39.9]} 16... fxe6 {[%clk
0:02:24.8]} 17. Qe2 {[%clk 0:02:38]} 17... e5 {[%clk 0:02:19.1]} 18. Nc5 {[%clk
0:02:08.7]} 18... e4 {[%clk 0:02:12.8]} 19. Ne6 {[%clk 0:02:06.1]} 19... exf3
{[%clk 0:02:05.7]} 20. Rxf3 {[%clk 0:02:04.3]} 20... Qb6+ {[%clk 0:02:03.8]} 0-1

[Event "Early-Titled-Tuesday-Blitz-July-09-2024"]
[Site "Chess.com"]
[Date "2024.07.09"]
[Round "11"]
[White "ManMish2"]
[Black "Zheenbekov86"]
[Result "1-0"]
[WhiteElo "2605"]
[BlackElo "2473"]
[TimeControl "180+1"]
[EndTime "10:02:46 PDT"]
[Termination "ManMish2 won by resignation"]

1. e4 {[%clk 0:03:00.9]} 1... c6 {[%clk 0:02:58.8]} 2. d4 {[%clk 0:02:59.9]}
2... d5 {[%clk 0:02:58.9]} 3. Nc3 {[%clk 0:03:00.2]} 3... dxe4 {[%clk
0:02:58.7]} 4. Nxe4 {[%clk 0:03:01]} 4... Nf6 {[%clk 0:02:58.9]} 5. Nxf6+ {[%clk
0:03:01.2]} 5... exf6 {[%clk 0:02:59.1]} 6. c3 {[%clk 0:03:01.7]} 6... Bd6
{[%clk 0:02:58.9]} 7. Bd3 {[%clk 0:03:02.1]} 7... h5 {[%clk 0:02:44.8]} 8. Ne2
{[%clk 0:02:59.1]} 8... h4 {[%clk 0:02:44.1]} 9. h3 {[%clk 0:02:58.6]} 9... Qc7
{[%clk 0:02:43.5]} 10. O-O {[%clk 0:02:57.4]} 10... Kf8 {[%clk 0:02:40.4]} 11.
c4 {[%clk 0:02:55.6]} 11... c5 {[%clk 0:02:18]} 12. dxc5 {[%clk 0:02:54.4]}
12... Bxc5 {[%clk 0:02:18.1]} 13. a3 {[%clk 0:02:48.5]} 13... a5 {[%clk
0:02:17.4]} 14. Bf4 {[%clk 0:02:44.9]} 14... Qb6 {[%clk 0:02:16.8]} 15. Nc3
{[%clk 0:02:40.1]} 15... Be6 {[%clk 0:01:41.8]} 16. Na4 {[%clk 0:02:32.4]} 16...
Qc6 {[%clk 0:01:41.5]} 17. Be4 {[%clk 0:02:31.2]} 1-0

[Event "Early-Titled-Tuesday-Blitz-July-09-2024"]
[Site "Chess.com"]
[Date "2024.07.09"]
[Round "11"]
[White "Andrey-Ivanov2011"]
[Black "klercaku"]
[Result "0-1"]
[WhiteElo "2186"]
[BlackElo "2383"]
[TimeControl "180+1"]
[EndTime "10:03:13 PDT"]
[Termination "klercaku won by resignation"]

1. e4 {[%clk 0:03:00.9]} 1... e5 {[%clk 0:02:59.9]} 2. Nf3 {[%clk 0:03:01.4]}
2... Nc6 {[%clk 0:02:59.9]} 3. Bc4 {[%clk 0:03:01.7]} 3... Bc5 {[%clk
0:02:59.2]} 4. c3 {[%clk 0:03:00.4]} 4... Nf6 {[%clk 0:02:59.3]} 5. d3 {[%clk
0:02:57.9]} 5... d6 {[%clk 0:02:58.8]} 6. O-O {[%clk 0:02:58.2]} 6... h6 {[%clk
0:02:59.2]} 7. a4 {[%clk 0:02:53.2]} 7... a6 {[%clk 0:02:59.2]} 8. h3 {[%clk
0:02:49.4]} 8... O-O {[%clk 0:02:58.5]} 9. Nbd2 {[%clk 0:02:48.7]} 9... Ba7
{[%clk 0:02:49.8]} 10. Nb3 {[%clk 0:02:48.8]} 10... Ne7 {[%clk 0:02:43.8]} 11.
Re1 {[%clk 0:02:39.2]} 11... b5 {[%clk 0:02:41.3]} 12. axb5 {[%clk 0:02:36.7]}
12... axb5 {[%clk 0:02:42.2]} 13. Bxb5 {[%clk 0:02:35.1]} 13... Bxf2+ {[%clk
0:02:41]} 14. Kxf2 {[%clk 0:02:31.9]} 14... Rxa1 {[%clk 0:02:35.5]} 15. Qe2
{[%clk 0:02:31.3]} 15... Ra8 {[%clk 0:02:29.8]} 16. Nh4 {[%clk 0:02:29.3]} 16...
g5 {[%clk 0:02:15.5]} 17. Nf5 {[%clk 0:02:20.6]} 17... Nxf5 {[%clk 0:02:14.1]}
18. exf5 {[%clk 0:02:21.5]} 18... Bxf5 {[%clk 0:02:13.9]} 19. Qf3 {[%clk
0:02:20.5]} 19... Bg6 {[%clk 0:02:04]} 20. Bc6 {[%clk 0:02:18.7]} 20... Rb8
{[%clk 0:02:02.5]} 21. Nd2 {[%clk 0:02:17.1]} 21... Kg7 {[%clk 0:02:00.6]} 22.
h4 {[%clk 0:02:17]} 22... g4 {[%clk 0:01:57.6]} 23. Qg3 {[%clk 0:02:07.2]} 23...
h5 {[%clk 0:01:53]} 24. Ne4 {[%clk 0:02:04.8]} 24... Nxe4+ {[%clk 0:01:50.8]}
25. Bxe4 {[%clk 0:02:04]} 25... f5 {[%clk 0:01:51]} 26. Bd5 {[%clk 0:02:00.9]}
26... f4 {[%clk 0:01:50.7]} 0-1

[Event "Early-Titled-Tuesday-Blitz-July-09-2024"]
[Site "Chess.com"]
[Date "2024.07.09"]
[Round "11"]
[White "kacperkarwowski"]
[Black "BashirovKemal"]
[Result "1-0"]
[WhiteElo "2570"]
[BlackElo "2670"]
[TimeControl "180+1"]
[EndTime "10:03:36 PDT"]
[Termination "kacperkarwowski won by resignation"]

1. e4 {[%clk 0:03:00.9]} 1... e5 {[%clk 0:03:00.3]} 2. Nf3 {[%clk 0:03:00]} 2...
Nf6 {[%clk 0:03:00.9]} 3. Nc3 {[%clk 0:02:53.5]} 3... Nc6 {[%clk 0:03:00.2]} 4.
d4 {[%clk 0:02:53.4]} 4... exd4 {[%clk 0:03:01.1]} 5. Nxd4 {[%clk 0:02:53.9]}
5... Bb4 {[%clk 0:03:01.8]} 6. Nxc6 {[%clk 0:02:54.1]} 6... bxc6 {[%clk
0:03:02.7]} 7. Bd3 {[%clk 0:02:54.4]} 7... d5 {[%clk 0:03:02.7]} 8. exd5 {[%clk
0:02:55.3]} 8... cxd5 {[%clk 0:03:03.6]} 9. O-O {[%clk 0:02:55.5]} 9... O-O
{[%clk 0:03:04.3]} 10. Bg5 {[%clk 0:02:55.6]} 10... Be7 {[%clk 0:03:03.7]} 11.
Qf3 {[%clk 0:02:53.2]} 11... c6 {[%clk 0:03:03.9]} 12. h3 {[%clk 0:02:47.2]}
12... h6 {[%clk 0:03:03.2]} 13. Bf4 {[%clk 0:02:44.5]} 13... Be6 {[%clk
0:02:59.4]} 14. Rad1 {[%clk 0:02:36.6]} 14... Bd6 {[%clk 0:02:53.7]} 15. Rfe1
{[%clk 0:02:33.1]} 15... Rb8 {[%clk 0:02:49.7]} 16. b3 {[%clk 0:02:32.3]} 16...
Rb4 {[%clk 0:02:48.3]} 17. Bxd6 {[%clk 0:02:28]} 17... Qxd6 {[%clk 0:02:47.9]}
18. Ne2 {[%clk 0:02:19]} 18... a5 {[%clk 0:02:44]} 19. Qg3 {[%clk 0:02:12]}
19... Qxg3 {[%clk 0:02:36.2]} 20. Nxg3 {[%clk 0:02:12.9]} 20... c5 {[%clk
0:02:32.2]} 21. Bf5 {[%clk 0:02:10.8]} 21... Re8 {[%clk 0:02:29.1]} 22. Re5
{[%clk 0:02:01.1]} 22... a4 {[%clk 0:02:22.3]} 23. Rde1 {[%clk 0:01:55.8]} 23...
axb3 {[%clk 0:02:22.2]} 24. axb3 {[%clk 0:01:55.3]} 24... Nd7 {[%clk 0:02:19]}
25. Rxd5 {[%clk 0:01:52.6]} 25... Nf8 {[%clk 0:02:14.5]} 26. Rxc5 {[%clk
0:01:48.7]} 26... Rd8 {[%clk 0:02:12.9]} 27. Bd3 {[%clk 0:01:28]} 27... Bxb3
{[%clk 0:02:11.3]} 28. cxb3 {[%clk 0:01:28.1]} 28... Rxd3 {[%clk 0:02:09.4]} 29.
Rc8 {[%clk 0:01:28.5]} 1-0

[Event "Early-Titled-Tuesday-Blitz-July-09-2024"]
[Site "Chess.com"]
[Date "2024.07.09"]
[Round "11"]
[White "bilosuvenosu06"]
[Black "banjadvorovi"]
[Result "0-1"]
[WhiteElo "2546"]
[BlackElo "2463"]
[TimeControl "180+1"]
[EndTime "10:03:51 PDT"]
[Termination "banjadvorovi won by resignation"]

1. d4 {[%clk 0:02:55.7]} 1... d5 {[%clk 0:02:58]} 2. Nf3 {[%clk 0:02:55.6]} 2...
g6 {[%clk 0:02:56.8]} 3. Bf4 {[%clk 0:02:56.2]} 3... Bg7 {[%clk 0:02:57.2]} 4.
e3 {[%clk 0:02:56]} 4... Nf6 {[%clk 0:02:57]} 5. Nbd2 {[%clk 0:02:56.5]} 5...
O-O {[%clk 0:02:57.5]} 6. Bd3 {[%clk 0:02:57.1]} 6... c5 {[%clk 0:02:58.2]} 7.
c3 {[%clk 0:02:57.2]} 7... Nc6 {[%clk 0:02:58.8]} 8. O-O {[%clk 0:02:57.1]} 8...
Nd7 {[%clk 0:02:56.7]} 9. Bg3 {[%clk 0:02:44]} 9... e5 {[%clk 0:02:53.6]} 10.
dxe5 {[%clk 0:02:43.8]} 10... Ndxe5 {[%clk 0:02:53.2]} 11. Nxe5 {[%clk
0:02:44.2]} 11... Nxe5 {[%clk 0:02:54.1]} 12. Be2 {[%clk 0:02:39.2]} 12... b6
{[%clk 0:02:44.7]} 13. Nf3 {[%clk 0:02:28.9]} 13... Nxf3+ {[%clk 0:02:42.7]} 14.
Bxf3 {[%clk 0:02:29.8]} 14... Bb7 {[%clk 0:02:43.4]} 15. Qd2 {[%clk 0:02:29.8]}
15... Qd7 {[%clk 0:02:36.6]} 16. Rfd1 {[%clk 0:02:28.5]} 16... Rad8 {[%clk
0:02:37.1]} 17. Rac1 {[%clk 0:02:25.9]} 17... Qe7 {[%clk 0:02:31.4]} 18. h3
{[%clk 0:02:22.4]} 18... d4 {[%clk 0:02:24.7]} 19. Bxb7 {[%clk 0:02:19.9]} 19...
dxc3 {[%clk 0:02:23.9]} 20. Qxd8 {[%clk 0:01:59.6]} 20... Rxd8 {[%clk
0:02:19.4]} 21. Rxd8+ {[%clk 0:02:00.5]} 21... Qxd8 {[%clk 0:02:18.7]} 22. bxc3
{[%clk 0:02:01.4]} 22... Qd2 {[%clk 0:02:16.5]} 23. Rf1 {[%clk 0:01:59.5]} 23...
Bxc3 {[%clk 0:02:16.7]} 24. e4 {[%clk 0:01:58.1]} 24... Kg7 {[%clk 0:02:14.6]}
25. Bd5 {[%clk 0:01:58]} 25... Bd4 {[%clk 0:02:13.8]} 26. Kh2 {[%clk 0:01:58.2]}
26... b5 {[%clk 0:02:09.3]} 27. Rb1 {[%clk 0:01:52.2]} 27... a6 {[%clk
0:02:08.7]} 28. f4 {[%clk 0:01:46.4]} 28... c4 {[%clk 0:02:08.2]} 29. f5 {[%clk
0:01:39]} 29... gxf5 {[%clk 0:02:05.9]} 30. exf5 {[%clk 0:01:38.9]} 30... c3
{[%clk 0:02:06.2]} 31. Be4 {[%clk 0:01:37.1]} 31... c2 {[%clk 0:02:05.4]} 32.
Bxc2 {[%clk 0:01:33.9]} 32... Qxc2 {[%clk 0:02:06.3]} 33. Rf1 {[%clk 0:01:33.9]}
33... f6 {[%clk 0:02:05.3]} 34. Bf4 {[%clk 0:01:30]} 34... Be5 {[%clk
0:02:04.5]} 35. Bxe5 {[%clk 0:01:29.8]} 35... fxe5 {[%clk 0:02:05.4]} 36. f6+
{[%clk 0:01:30.4]} 36... Kf7 {[%clk 0:02:05.8]} 37. Rf5 {[%clk 0:01:30.7]} 37...
Qxf5 {[%clk 0:02:05.2]} 0-1

[Event "Early-Titled-Tuesday-Blitz-July-09-2024"]
[Site "Chess.com"]
[Date "2024.07.09"]
[Round "11"]
[White "kadirsoria"]
[Black "JAN2404"]
[Result "1-0"]
[WhiteElo "2230"]
[BlackElo "2071"]
[TimeControl "180+1"]
[EndTime "10:04:05 PDT"]
[Termination "kadirsoria won by resignation"]

1. d4 {[%clk 0:02:58.8]} 1... Nf6 {[%clk 0:02:31.1]} 2. Nf3 {[%clk 0:02:58.3]}
2... g6 {[%clk 0:02:31.4]} 3. g3 {[%clk 0:02:57.9]} 3... Bg7 {[%clk 0:02:31.9]}
4. Bg2 {[%clk 0:02:58.8]} 4... O-O {[%clk 0:02:32.6]} 5. O-O {[%clk 0:02:59.6]}
5... d6 {[%clk 0:02:33.2]} 6. b3 {[%clk 0:02:59.6]} 6... c6 {[%clk 0:02:33.2]}
7. Bb2 {[%clk 0:02:59.7]} 7... Bf5 {[%clk 0:02:33.9]} 8. c4 {[%clk 0:02:58.6]}
8... d5 {[%clk 0:02:29.9]} 9. Nc3 {[%clk 0:02:47.4]} 9... Ne4 {[%clk 0:02:24.8]}
10. e3 {[%clk 0:02:42]} 10... Na6 {[%clk 0:02:14.4]} 11. Rc1 {[%clk 0:02:29.5]}
11... Qd7 {[%clk 0:02:10.6]} 12. cxd5 {[%clk 0:02:22.7]} 12... cxd5 {[%clk
0:02:10.4]} 13. Ne5 {[%clk 0:02:03.2]} 13... Bxe5 {[%clk 0:02:01.1]} 14. Nxe4
{[%clk 0:01:55.9]} 14... Bxe4 {[%clk 0:01:57]} 15. Bxe4 {[%clk 0:01:50.1]} 15...
dxe4 {[%clk 0:01:57]} 16. dxe5 {[%clk 0:01:49.7]} 16... Rfd8 {[%clk 0:01:43.9]}
17. Qxd7 {[%clk 0:01:09.3]} 17... Rxd7 {[%clk 0:01:42.2]} 18. Rfd1 {[%clk
0:01:10.1]} 18... Rad8 {[%clk 0:01:37.9]} 19. Rxd7 {[%clk 0:01:09.4]} 1-0